[Event "Late-Titled-Tuesday-Blitz-May-14-2024"]
[Site "Chess.com"]
[Date "2024.05.14"]
[Round "4"]
[White "SandwichOSaumon"]
[Black "joksijoksi"]
[Result "0-1"]
[WhiteElo "2325"]
[BlackElo "2517"]
[TimeControl "180+1"]
[EndTime "14:41:27 PDT"]
[Termination "joksijoksi won by checkmate"]

1. a3 {[%clk 0:03:00.9]} 1... d5 {[%clk 0:02:57.4]} 2. Nf3 {[%clk 0:03:00.6]}
2... Nf6 {[%clk 0:02:57.1]} 3. e3 {[%clk 0:03:00.3]} 3... g6 {[%clk 0:02:56.8]}
4. c4 {[%clk 0:03:00]} 4... c6 {[%clk 0:02:54.8]} 5. b4 {[%clk 0:02:59.5]} 5...
Bg7 {[%clk 0:02:54]} 6. Bb2 {[%clk 0:03:00.1]} 6... O-O {[%clk 0:02:54.2]} 7.
Qc2 {[%clk 0:02:57.9]} 7... Bf5 {[%clk 0:02:43.6]} 8. d3 {[%clk 0:02:56.6]} 8...
Nbd7 {[%clk 0:02:39.9]} 9. Nbd2 {[%clk 0:02:56.1]} 9... a5 {[%clk 0:02:32.9]}
10. e4 {[%clk 0:02:10.8]} 10... dxe4 {[%clk 0:02:31.7]} 11. dxe4 {[%clk
0:02:11.7]} 11... Nxe4 {[%clk 0:02:27.5]} 12. Bxg7 {[%clk 0:02:08.5]} 12... Nxd2
{[%clk 0:02:27]} 13. Qxd2 {[%clk 0:02:03.2]} 13... Kxg7 {[%clk 0:02:26.9]} 14.
Rd1 {[%clk 0:01:52.4]} 14... axb4 {[%clk 0:02:18.6]} 15. axb4 {[%clk 0:01:53.3]}
15... Nf6 {[%clk 0:02:14.8]} 16. Qc3 {[%clk 0:01:51.3]} 16... Qb6 {[%clk
0:02:09.5]} 17. Be2 {[%clk 0:01:33.8]} 17... Ra2 {[%clk 0:02:08.5]} 18. Nd4
{[%clk 0:01:28.5]} 18... Be4 {[%clk 0:01:56.3]} 19. O-O {[%clk 0:01:23.6]} 19...
e5 {[%clk 0:01:52.1]} 20. c5 {[%clk 0:01:15.3]} 20... Qc7 {[%clk 0:01:51.4]} 21.
Bc4 {[%clk 0:01:12]} 21... exd4 {[%clk 0:01:50.6]} 22. Rxd4 {[%clk 0:01:11.1]}
22... Rc2 {[%clk 0:01:49.8]} 23. Qb3 {[%clk 0:01:08.8]} 23... Bf5 {[%clk
0:01:42.9]} 24. g4 {[%clk 0:01:07.5]} 24... Rxc4 {[%clk 0:01:08.6]} 25. Qxc4
{[%clk 0:01:05]} 25... Be6 {[%clk 0:01:03]} 26. Qc3 {[%clk 0:01:05.4]} 26... Kg8
{[%clk 0:00:42.2]} 27. g5 {[%clk 0:00:55.4]} 27... Nd5 {[%clk 0:00:42.4]} 28.
Qe1 {[%clk 0:00:30.3]} 28... Ra8 {[%clk 0:00:32.7]} 29. Qe4 {[%clk 0:00:23.6]}
29... Bf5 {[%clk 0:00:32.3]} 30. Qe2 {[%clk 0:00:17.3]} 30... h6 {[%clk
0:00:30.3]} 31. gxh6 {[%clk 0:00:16.7]} 31... Kh7 {[%clk 0:00:30.7]} 32. Re1
{[%clk 0:00:16.1]} 32... Kxh6 {[%clk 0:00:29.3]} 33. Rh4+ {[%clk 0:00:15.2]}
33... Kg7 {[%clk 0:00:28.6]} 34. Qb2+ {[%clk 0:00:15.1]} 34... Nf6 {[%clk
0:00:28.8]} 35. Rd4 {[%clk 0:00:13.4]} 35... Rh8 {[%clk 0:00:26]} 36. Rd6 {[%clk
0:00:13.4]} 36... Be6 {[%clk 0:00:17.7]} 37. Qd4 {[%clk 0:00:10.6]} 37... Rh5
{[%clk 0:00:17.1]} 38. f4 {[%clk 0:00:04.5]} 38... Rd5 {[%clk 0:00:17.3]} 39.
Rxd5 {[%clk 0:00:03.9]} 39... Bxd5 {[%clk 0:00:18.1]} 40. Re5 {[%clk 0:00:04.4]}
40... Qd7 {[%clk 0:00:18.1]} 41. h3 {[%clk 0:00:03.9]} 41... Qxh3 {[%clk
0:00:18.2]} 42. Re3 {[%clk 0:00:04.5]} 42... Qg4+ {[%clk 0:00:17.4]} 43. Kf2
{[%clk 0:00:04.5]} 43... Qg2+ {[%clk 0:00:14.9]} 44. Ke1 {[%clk 0:00:05]} 44...
Qg1+ {[%clk 0:00:15.4]} 45. Kd2 {[%clk 0:00:05.3]} 45... Qf2+ {[%clk 0:00:15.2]}
46. Kc3 {[%clk 0:00:05.9]} 46... Be6 {[%clk 0:00:11.9]} 47. Kd3 {[%clk
0:00:05.8]} 47... Qf1+ {[%clk 0:00:11.1]} 48. Kd2 {[%clk 0:00:06.3]} 48... Qb1
{[%clk 0:00:08.6]} 49. Kc3 {[%clk 0:00:06.3]} 49... Qa1+ {[%clk 0:00:07.1]} 50.
Kd3 {[%clk 0:00:06.9]} 50... Qxd4+ {[%clk 0:00:07]} 51. Kxd4 {[%clk 0:00:07.8]}
51... Nd5 {[%clk 0:00:07.9]} 52. Rf3 {[%clk 0:00:06.9]} 52... Nxb4 {[%clk
0:00:08]} 53. Ke5 {[%clk 0:00:07.5]} 53... Nd5 {[%clk 0:00:07.5]} 54. Rf2 {[%clk
0:00:05.5]} 54... b6 {[%clk 0:00:07.5]} 55. cxb6 {[%clk 0:00:05.7]} 55... Nxb6
{[%clk 0:00:08.4]} 56. Kd6 {[%clk 0:00:05.9]} 56... Nd5 {[%clk 0:00:08.1]} 57.
Kxc6 {[%clk 0:00:05.5]} 57... Kf6 {[%clk 0:00:08.6]} 58. f5 {[%clk 0:00:05.3]}
58... gxf5 {[%clk 0:00:08.4]} 59. Kd6 {[%clk 0:00:06]} 59... f4 {[%clk
0:00:08.6]} 60. Rf1 {[%clk 0:00:05.2]} 60... Kf5 {[%clk 0:00:08.7]} 61. Kc5
{[%clk 0:00:05.5]} 61... Ne3 {[%clk 0:00:09]} 62. Rf2 {[%clk 0:00:05.2]} 62...
Ke4 {[%clk 0:00:09.9]} 63. Rb2 {[%clk 0:00:02.9]} 63... f3 {[%clk 0:00:10.8]}
64. Kb4 {[%clk 0:00:02.7]} 64... Nd1 {[%clk 0:00:08.8]} 65. Rd2 {[%clk
0:00:02.5]} 65... Ne3 {[%clk 0:00:07.6]} 66. Kc3 {[%clk 0:00:03]} 66... Ng4
{[%clk 0:00:07.8]} 67. Rd4+ {[%clk 0:00:03.3]} 67... Kf5 {[%clk 0:00:08.1]} 68.
Kd2 {[%clk 0:00:02.3]} 68... f2 {[%clk 0:00:07.6]} 69. Ke2 {[%clk 0:00:03.2]}
69... Bc8 {[%clk 0:00:07.1]} 70. Ra4 {[%clk 0:00:01.2]} 70... Bb7 {[%clk
0:00:07.2]} 71. Ra5+ {[%clk 0:00:01.9]} 71... Kf4 {[%clk 0:00:07.4]} 72. Ra4+
{[%clk 0:00:01.8]} 72... Kg3 {[%clk 0:00:07.6]} 73. Kf1 {[%clk 0:00:01.8]} 73...
Bg2+ {[%clk 0:00:06.9]} 74. Ke2 {[%clk 0:00:01.9]} 74... f1=Q+ {[%clk
0:00:07.5]} 75. Kd2 {[%clk 0:00:02.2]} 75... Qf2+ {[%clk 0:00:07.6]} 76. Kc3
{[%clk 0:00:03.1]} 76... Qe3+ {[%clk 0:00:07.7]} 77. Kb4 {[%clk 0:00:04]} 77...
Qd4+ {[%clk 0:00:07.7]} 78. Ka5 {[%clk 0:00:04.5]} 78... Qxa4+ {[%clk
0:00:08.6]} 79. Kxa4 {[%clk 0:00:04.8]} 79... f5 {[%clk 0:00:09.5]} 80. Kb4
{[%clk 0:00:05.7]} 80... f4 {[%clk 0:00:10.2]} 81. Kc3 {[%clk 0:00:06.6]} 81...
f3 {[%clk 0:00:11]} 82. Kd2 {[%clk 0:00:07.5]} 82... f2 {[%clk 0:00:11.7]} 83.
Kd3 {[%clk 0:00:08.4]} 83... f1=Q+ {[%clk 0:00:11.4]} 84. Kd4 {[%clk 0:00:09.3]}
84... Qe2 {[%clk 0:00:11.3]} 85. Kc5 {[%clk 0:00:10.2]} 85... Qd3 {[%clk
0:00:11.4]} 86. Kb4 {[%clk 0:00:11.1]} 86... Qc2 {[%clk 0:00:11.6]} 87. Ka5
{[%clk 0:00:12]} 87... Qb3 {[%clk 0:00:11.7]} 88. Ka6 {[%clk 0:00:12.9]} 88...
Bc6 {[%clk 0:00:11.5]} 89. Ka5 {[%clk 0:00:12.8]} 89... Qb5# {[%clk 0:00:02.9]}
0-1

[Event "Late-Titled-Tuesday-Blitz-May-14-2024"]
[Site "Chess.com"]
[Date "2024.05.14"]
[Round "4"]
[White "Lady_Nika"]
[Black "jinxy2009"]
[Result "1/2-1/2"]
[WhiteElo "2499"]
[BlackElo "2309"]
[TimeControl "180+1"]
[EndTime "14:41:56 PDT"]
[Termination "Game drawn - insufficient material"]

1. d4 {[%clk 0:03:00.9]} 1... Nf6 {[%clk 0:02:58]} 2. e3 {[%clk 0:02:57.3]} 2...
d5 {[%clk 0:02:57]} 3. f4 {[%clk 0:02:57]} 3... c5 {[%clk 0:02:53.8]} 4. Nf3
{[%clk 0:02:57.9]} 4... Nc6 {[%clk 0:02:53.9]} 5. c3 {[%clk 0:02:57.8]} 5... Bf5
{[%clk 0:02:51.2]} 6. Bd3 {[%clk 0:02:57.9]} 6... Bxd3 {[%clk 0:02:51]} 7. Qxd3
{[%clk 0:02:58.8]} 7... e6 {[%clk 0:02:51.2]} 8. O-O {[%clk 0:02:59.1]} 8... Be7
{[%clk 0:02:46.3]} 9. Ne5 {[%clk 0:02:59.2]} 9... Rc8 {[%clk 0:02:45.7]} 10. Nd2
{[%clk 0:02:58.9]} 10... O-O {[%clk 0:02:45.5]} 11. Rf3 {[%clk 0:02:58.6]} 11...
Nd7 {[%clk 0:02:27.1]} 12. Rh3 {[%clk 0:02:56.4]} 12... g6 {[%clk 0:02:23.8]}
13. Nxc6 {[%clk 0:02:53.7]} 13... Rxc6 {[%clk 0:02:23]} 14. Nf3 {[%clk
0:02:50.7]} 14... Bf6 {[%clk 0:02:18.8]} 15. Bd2 {[%clk 0:02:50.6]} 15... Bg7
{[%clk 0:02:10.7]} 16. Kh1 {[%clk 0:02:50.1]} 16... cxd4 {[%clk 0:02:07.7]} 17.
exd4 {[%clk 0:02:49.7]} 17... Rc8 {[%clk 0:02:04.5]} 18. Rg1 {[%clk 0:02:47]}
18... Nf6 {[%clk 0:02:03.7]} 19. Be1 {[%clk 0:02:43.6]} 19... Ne4 {[%clk
0:01:59.4]} 20. Nd2 {[%clk 0:02:42.4]} 20... Nxd2 {[%clk 0:01:55.9]} 21. Bxd2
{[%clk 0:02:39.7]} 21... Qd7 {[%clk 0:01:52.8]} 22. g4 {[%clk 0:02:38.1]} 22...
b5 {[%clk 0:01:51.2]} 23. a3 {[%clk 0:02:37.4]} 23... a5 {[%clk 0:01:50.9]} 24.
Qg3 {[%clk 0:02:37.6]} 24... Qe7 {[%clk 0:01:35.7]} 25. g5 {[%clk 0:02:28.7]}
25... b4 {[%clk 0:01:26.1]} 26. axb4 {[%clk 0:02:28.1]} 26... axb4 {[%clk
0:01:25.3]} 27. Qh4 {[%clk 0:02:27.8]} 27... h5 {[%clk 0:01:23.3]} 28. gxh6
{[%clk 0:02:27.2]} 28... Qxh4 {[%clk 0:01:18.6]} 29. Rxh4 {[%clk 0:02:27.1]}
29... Bf6 {[%clk 0:01:18.5]} 30. Rh3 {[%clk 0:02:26.2]} 30... bxc3 {[%clk
0:01:16]} 31. Bxc3 {[%clk 0:02:22.4]} 31... Rc4 {[%clk 0:01:15.4]} 32. b3 {[%clk
0:02:19.6]} 32... Rc6 {[%clk 0:01:10.8]} 33. Bb4 {[%clk 0:02:17]} 33... Rb8
{[%clk 0:01:08.3]} 34. Bc5 {[%clk 0:02:09.5]} 34... Bd8 {[%clk 0:00:53.9]} 35.
b4 {[%clk 0:02:09.3]} 35... Bb6 {[%clk 0:00:53.7]} 36. b5 {[%clk 0:01:53.8]}
36... Rcc8 {[%clk 0:00:48.7]} 37. Bd6 {[%clk 0:01:53.3]} 37... Bc7 {[%clk
0:00:41.8]} 38. Be7 {[%clk 0:01:45.4]} 38... Kh7 {[%clk 0:00:38.3]} 39. Rb3
{[%clk 0:01:41.6]} 39... Bxf4 {[%clk 0:00:37.8]} 40. Rf1 {[%clk 0:01:40.4]}
40... g5 {[%clk 0:00:33.5]} 41. b6 {[%clk 0:01:27.6]} 41... Rb7 {[%clk
0:00:30.7]} 42. Bc5 {[%clk 0:01:26.7]} 42... Kxh6 {[%clk 0:00:29.6]} 43. h4
{[%clk 0:01:24.4]} 43... f5 {[%clk 0:00:27]} 44. hxg5+ {[%clk 0:01:23]} 44...
Kxg5 {[%clk 0:00:26.9]} 45. Re1 {[%clk 0:01:20.6]} 45... Kf6 {[%clk 0:00:25.8]}
46. Rh3 {[%clk 0:01:18.4]} 46... e5 {[%clk 0:00:14.9]} 47. dxe5+ {[%clk
0:01:17.1]} 47... Bxe5 {[%clk 0:00:14.7]} 48. Bg1 {[%clk 0:01:12.2]} 48... Bf4
{[%clk 0:00:12.3]} 49. Bd4+ {[%clk 0:01:09]} 49... Kg5 {[%clk 0:00:12.4]} 50.
Rg1+ {[%clk 0:01:08.2]} 50... Bg3 {[%clk 0:00:12.2]} 51. Rgxg3+ {[%clk
0:01:05.9]} 51... Kf4 {[%clk 0:00:12.6]} 52. Rg1 {[%clk 0:01:03.9]} 52... Ke4
{[%clk 0:00:12.6]} 53. Bf2 {[%clk 0:01:00.5]} 53... d4 {[%clk 0:00:10.9]} 54.
Rd1 {[%clk 0:01:00.1]} 54... Rxb6 {[%clk 0:00:10.3]} 55. Rxd4+ {[%clk
0:00:59.8]} 55... Ke5 {[%clk 0:00:10.9]} 56. Rd5+ {[%clk 0:00:45.7]} 56... Kxd5
{[%clk 0:00:10.8]} 57. Bxb6 {[%clk 0:00:46.6]} 57... Rc1+ {[%clk 0:00:10.9]} 58.
Kg2 {[%clk 0:00:45.8]} 58... Ke4 {[%clk 0:00:11.4]} 59. Re3+ {[%clk 0:00:44.1]}
59... Kf4 {[%clk 0:00:11]} 60. Rg3 {[%clk 0:00:43.4]} 60... Rc2+ {[%clk
0:00:10.6]} 61. Bf2 {[%clk 0:00:42.8]} 61... Ke4 {[%clk 0:00:08.4]} 62. Re3+
{[%clk 0:00:42.4]} 62... Kf4 {[%clk 0:00:07.9]} 63. Re8 {[%clk 0:00:42.3]} 63...
Kg4 {[%clk 0:00:07.2]} 64. Kf1 {[%clk 0:00:41.8]} 64... f4 {[%clk 0:00:06.7]}
65. Ra8 {[%clk 0:00:39.5]} 65... Rc3 {[%clk 0:00:06]} 66. Ke2 {[%clk 0:00:36.8]}
66... Rc2+ {[%clk 0:00:06.4]} 67. Ke1 {[%clk 0:00:35.9]} 67... Rb2 {[%clk
0:00:06.7]} 68. Bd4 {[%clk 0:00:33.2]} 68... Rb1+ {[%clk 0:00:06.3]} 69. Ke2
{[%clk 0:00:32.7]} 69... Rh1 {[%clk 0:00:05]} 70. Rg8+ {[%clk 0:00:31.6]} 70...
Kf5 {[%clk 0:00:05.3]} 71. Kf3 {[%clk 0:00:30.2]} 71... Rh3+ {[%clk 0:00:05.1]}
72. Kf2 {[%clk 0:00:30.1]} 72... Rb3 {[%clk 0:00:06]} 73. Bc5 {[%clk 0:00:27.8]}
73... Ke4 {[%clk 0:00:06.4]} 74. Bd6 {[%clk 0:00:27.6]} 74... Rb2+ {[%clk
0:00:06.7]} 75. Ke1 {[%clk 0:00:27.7]} 75... Kf3 {[%clk 0:00:07.1]} 76. Rf8
{[%clk 0:00:27.4]} 76... Rb1+ {[%clk 0:00:07.1]} 77. Kd2 {[%clk 0:00:27.4]}
77... Rb2+ {[%clk 0:00:06.8]} 78. Kc3 {[%clk 0:00:27.4]} 78... Re2 {[%clk
0:00:06.7]} 79. Rxf4+ {[%clk 0:00:26.6]} 79... Kg2 {[%clk 0:00:07.2]} 80. Rg4+
{[%clk 0:00:26.4]} 80... Kf3 {[%clk 0:00:07.1]} 81. Rg3+ {[%clk 0:00:26.3]}
81... Ke4 {[%clk 0:00:07.5]} 82. Rg4+ {[%clk 0:00:23.8]} 82... Kf3 {[%clk
0:00:07.2]} 83. Rf4+ {[%clk 0:00:23.4]} 83... Kg2 {[%clk 0:00:07.2]} 84. Bc5
{[%clk 0:00:21.4]} 84... Re8 {[%clk 0:00:06.5]} 85. Rf7 {[%clk 0:00:21.2]} 85...
Re2 {[%clk 0:00:06.4]} 86. Kd3 {[%clk 0:00:20.8]} 86... Re8 {[%clk 0:00:06.4]}
87. Rg7+ {[%clk 0:00:21]} 87... Kf3 {[%clk 0:00:06.1]} 88. Bd4 {[%clk
0:00:21.2]} 88... Re6 {[%clk 0:00:04.3]} 89. Rf7+ {[%clk 0:00:21]} 89... Kg4
{[%clk 0:00:04.5]} 90. Be3 {[%clk 0:00:20.4]} 90... Re8 {[%clk 0:00:04.2]} 91.
Ke2 {[%clk 0:00:20.4]} 91... Rd8 {[%clk 0:00:03.9]} 92. Rf6 {[%clk 0:00:20.2]}
92... Re8 {[%clk 0:00:04.1]} 93. Rf4+ {[%clk 0:00:20.2]} 93... Kg3 {[%clk
0:00:03.7]} 94. Rc4 {[%clk 0:00:18.7]} 94... Kg2 {[%clk 0:00:03.6]} 95. Rg4+
{[%clk 0:00:18.3]} 95... Kh3 {[%clk 0:00:04]} 96. Kf3 {[%clk 0:00:18.1]} 96...
Rxe3+ {[%clk 0:00:03.8]} 97. Kxe3 {[%clk 0:00:17.2]} 97... Kxg4 {[%clk
0:00:04.2]} 1/2-1/2

[Event "Late-Titled-Tuesday-Blitz-May-14-2024"]
[Site "Chess.com"]
[Date "2024.05.14"]
[Round "4"]
[White "Oleksandr_Bortnyk"]
[Black "Mops_2004"]
[Result "1/2-1/2"]
[WhiteElo "3048"]
[BlackElo "2835"]
[TimeControl "180+1"]
[EndTime "14:42:28 PDT"]
[Termination "Game drawn by repetition"]

1. e4 {[%clk 0:03:00.9]} 1... g6 {[%clk 0:03:00.1]} 2. h4 {[%clk 0:03:00.5]}
2... Nf6 {[%clk 0:02:59.8]} 3. e5 {[%clk 0:03:00.8]} 3... Nh5 {[%clk 0:03:00]}
4. g4 {[%clk 0:02:50.1]} 4... Ng7 {[%clk 0:02:59.9]} 5. h5 {[%clk 0:02:49.9]}
5... gxh5 {[%clk 0:03:00.2]} 6. gxh5 {[%clk 0:02:50.4]} 6... d6 {[%clk
0:03:00.7]} 7. h6 {[%clk 0:02:51.1]} 7... Nf5 {[%clk 0:02:59.4]} 8. Nf3 {[%clk
0:02:42]} 8... dxe5 {[%clk 0:02:55.6]} 9. Bc4 {[%clk 0:02:42.3]} 9... Nc6 {[%clk
0:02:47.8]} 10. d3 {[%clk 0:02:42.4]} 10... Nd6 {[%clk 0:02:40.3]} 11. Bb3
{[%clk 0:02:41.1]} 11... Bg4 {[%clk 0:02:37.4]} 12. Be3 {[%clk 0:02:33.4]} 12...
Qd7 {[%clk 0:02:34.4]} 13. Nbd2 {[%clk 0:02:30.1]} 13... O-O-O {[%clk
0:02:33.7]} 14. Qe2 {[%clk 0:02:30.3]} 14... Nf5 {[%clk 0:02:24.6]} 15. O-O-O
{[%clk 0:02:26.8]} 15... f6 {[%clk 0:02:14.4]} 16. Rdg1 {[%clk 0:02:11.3]} 16...
Ncd4 {[%clk 0:02:09.9]} 17. Bxd4 {[%clk 0:02:08.5]} 17... Nxd4 {[%clk
0:02:09.1]} 18. Qe4 {[%clk 0:02:07.6]} 18... Bf5 {[%clk 0:01:52.4]} 19. Qe3
{[%clk 0:02:02.3]} 19... Nxb3+ {[%clk 0:01:39.4]} 20. axb3 {[%clk 0:02:03.2]}
20... b6 {[%clk 0:01:38.4]} 21. Nxe5 {[%clk 0:02:00.4]} 21... fxe5 {[%clk
0:01:12]} 22. Qxe5 {[%clk 0:02:01.3]} 22... Bxh6 {[%clk 0:01:12.4]} 23. Rxh6
{[%clk 0:02:02.2]} 23... Rhg8 {[%clk 0:01:12.7]} 24. Re1 {[%clk 0:01:58.3]}
24... e6 {[%clk 0:01:11.7]} 25. Nc4 {[%clk 0:01:33.3]} 25... Rg2 {[%clk
0:01:10.3]} 26. Qf4 {[%clk 0:01:28]} 26... Qd4 {[%clk 0:01:00.2]} 27. Qf3 {[%clk
0:01:12]} 27... Qd5 {[%clk 0:00:51.3]} 28. Qxd5 {[%clk 0:01:11.6]} 28... exd5
{[%clk 0:00:48.9]} 29. Ne3 {[%clk 0:01:12.5]} 29... Rxf2 {[%clk 0:00:40.7]} 30.
Nxf5 {[%clk 0:00:52]} 30... Rxf5 {[%clk 0:00:40]} 31. Rxh7 {[%clk 0:00:52.9]}
31... Rf6 {[%clk 0:00:36.5]} 32. Ree7 {[%clk 0:00:50.4]} 32... Rc6 {[%clk
0:00:36.6]} 33. b4 {[%clk 0:00:51]} 33... a6 {[%clk 0:00:34]} 34. c3 {[%clk
0:00:44]} 34... Rdd6 {[%clk 0:00:26]} 35. Rh8+ {[%clk 0:00:37.7]} 35... Rd8
{[%clk 0:00:25.6]} 36. Rh5 {[%clk 0:00:36.2]} 36... Rcd6 {[%clk 0:00:22.5]} 37.
Kc2 {[%clk 0:00:34.3]} 37... R6d7 {[%clk 0:00:22.5]} 38. Ree5 {[%clk 0:00:34.3]}
38... Kb7 {[%clk 0:00:22]} 39. d4 {[%clk 0:00:34.3]} 39... b5 {[%clk 0:00:21]}
40. Kb3 {[%clk 0:00:34.2]} 40... Rd6 {[%clk 0:00:21.4]} 41. Reg5 {[%clk
0:00:34.8]} 41... R6d7 {[%clk 0:00:21.8]} 42. Rg6 {[%clk 0:00:34.7]} 42... Rd6
{[%clk 0:00:22.2]} 43. Rgg5 {[%clk 0:00:34.3]} 43... R8d7 {[%clk 0:00:22.6]} 44.
Rf5 {[%clk 0:00:35.2]} 44... Rd8 {[%clk 0:00:22.9]} 45. Rhg5 {[%clk 0:00:36.1]}
45... R8d7 {[%clk 0:00:23.5]} 46. Kc2 {[%clk 0:00:37]} 46... Rd8 {[%clk
0:00:24.1]} 47. Kd3 {[%clk 0:00:37.9]} 47... R8d7 {[%clk 0:00:24.7]} 48. Re5
{[%clk 0:00:38.5]} 48... Rd8 {[%clk 0:00:24.6]} 49. Re7 {[%clk 0:00:38.5]} 49...
R8d7 {[%clk 0:00:24.7]} 50. Rxd7 {[%clk 0:00:38.9]} 50... Rxd7 {[%clk 0:00:25]}
51. Ke3 {[%clk 0:00:39.6]} 51... c6 {[%clk 0:00:23.8]} 52. Kf4 {[%clk
0:00:38.6]} 52... Rf7+ {[%clk 0:00:23.7]} 53. Ke5 {[%clk 0:00:38.8]} 53... Rf2
{[%clk 0:00:18.3]} 54. Kd6 {[%clk 0:00:32.5]} 54... Kb6 {[%clk 0:00:18.5]} 55.
Rg6 {[%clk 0:00:28.9]} 55... Rf3 {[%clk 0:00:17.9]} 56. Re6 {[%clk 0:00:27.5]}
56... Rf7 {[%clk 0:00:11.1]} 57. Re8 {[%clk 0:00:19.7]} 57... Rf6+ {[%clk
0:00:08.7]} 58. Re6 {[%clk 0:00:17.2]} 58... Rf7 {[%clk 0:00:08.9]} 59. Rh6
{[%clk 0:00:15.2]} 59... Rg7 {[%clk 0:00:08.5]} 60. Rf6 {[%clk 0:00:13.3]} 60...
Rh7 {[%clk 0:00:08.5]} 61. Ke6 {[%clk 0:00:09.7]} 61... Rh2 {[%clk 0:00:05.5]}
62. Rg6 {[%clk 0:00:05.7]} 62... Rh7 {[%clk 0:00:04.7]} 63. Rf6 {[%clk
0:00:05.4]} 63... Rg7 {[%clk 0:00:04.5]} 64. Rf8 {[%clk 0:00:03.8]} 64... Rg6+
{[%clk 0:00:04.4]} 65. Ke5 {[%clk 0:00:04.3]} 65... Rg5+ {[%clk 0:00:04.4]} 66.
Kd6 {[%clk 0:00:04.5]} 66... Rg6+ {[%clk 0:00:04.5]} 67. Kd7 {[%clk 0:00:04.8]}
67... Rg7+ {[%clk 0:00:04.9]} 68. Ke6 {[%clk 0:00:04.7]} 68... Rg6+ {[%clk
0:00:05.1]} 69. Rf6 {[%clk 0:00:05.5]} 69... Rg2 {[%clk 0:00:04.2]} 70. Kd6
{[%clk 0:00:04]} 70... Rg7 {[%clk 0:00:03.6]} 71. Rh6 {[%clk 0:00:04.4]} 71...
Rf7 {[%clk 0:00:03.5]} 72. Rh2 {[%clk 0:00:04]} 72... Rf6+ {[%clk 0:00:03.8]}
73. Ke7 {[%clk 0:00:04.6]} 73... Rg6 {[%clk 0:00:04.2]} 74. Kf7 {[%clk
0:00:05.2]} 74... Rd6 {[%clk 0:00:04.3]} 75. Re2 {[%clk 0:00:03]} 75... Rh6
{[%clk 0:00:04]} 76. Kg7 {[%clk 0:00:02.5]} 76... Rh3 {[%clk 0:00:03.3]} 77. Kf7
{[%clk 0:00:02.2]} 77... Rh7+ {[%clk 0:00:03.1]} 78. Kg6 {[%clk 0:00:02.9]}
78... Rh1 {[%clk 0:00:02.5]} 79. Rf2 {[%clk 0:00:03.8]} 79... Rg1+ {[%clk
0:00:02.7]} 80. Kf7 {[%clk 0:00:04.4]} 80... Re1 {[%clk 0:00:03.3]} 81. Kf6
{[%clk 0:00:03.9]} 81... Re3 {[%clk 0:00:03.5]} 82. Rg2 {[%clk 0:00:04.1]} 82...
Re8 {[%clk 0:00:03.9]} 83. Kf7 {[%clk 0:00:04.5]} 83... Re3 {[%clk 0:00:03.7]}
84. Rh2 {[%clk 0:00:04.3]} 84... Re4 {[%clk 0:00:04]} 85. Rf2 {[%clk 0:00:04.4]}
85... Kc7 {[%clk 0:00:04]} 86. Kf6 {[%clk 0:00:03.4]} 86... Re3 {[%clk
0:00:04.3]} 87. Rg2 {[%clk 0:00:03.7]} 87... Re8 {[%clk 0:00:04.7]} 88. Rg7+
{[%clk 0:00:03.8]} 88... Kb6 {[%clk 0:00:05]} 89. Re7 {[%clk 0:00:04.7]} 89...
Rh8 {[%clk 0:00:05]} 90. Ke6 {[%clk 0:00:05.4]} 90... Rh2 {[%clk 0:00:04]} 91.
Kd7 {[%clk 0:00:06.3]} 91... Rh6 {[%clk 0:00:04]} 92. Kc8 {[%clk 0:00:04.2]}
92... a5 {[%clk 0:00:02.7]} 93. bxa5+ {[%clk 0:00:02.1]} 93... Kxa5 {[%clk
0:00:03.1]} 94. Kb7 {[%clk 0:00:02]} 94... b4 {[%clk 0:00:01.4]} 95. Rc7 {[%clk
0:00:01.4]} 95... bxc3 {[%clk 0:00:01.5]} 96. bxc3 {[%clk 0:00:02.3]} 96... Kb5
{[%clk 0:00:01.9]} 97. Rg7 {[%clk 0:00:01.4]} 97... Rf6 {[%clk 0:00:01.9]} 98.
Rg5 {[%clk 0:00:01.1]} 98... Rf3 {[%clk 0:00:02]} 99. Rg6 {[%clk 0:00:00.9]}
99... Rxc3 {[%clk 0:00:02.5]} 100. Kc7 {[%clk 0:00:01.7]} 100... Rc4 {[%clk
0:00:02.9]} 101. Kd6 {[%clk 0:00:01.5]} 101... Rxd4 {[%clk 0:00:03.2]} 102. Rg1
{[%clk 0:00:02.4]} 102... Rc4 {[%clk 0:00:03.2]} 103. Rb1+ {[%clk 0:00:03]}
103... Ka4 {[%clk 0:00:03.7]} 104. Ke5 {[%clk 0:00:02.8]} 104... Rb4 {[%clk
0:00:02.8]} 105. Rc1 {[%clk 0:00:03]} 105... Kb5 {[%clk 0:00:03.4]} 106. Kd6
{[%clk 0:00:03.6]} 106... Rc4 {[%clk 0:00:02.8]} 107. Rb1+ {[%clk 0:00:04.3]}
107... Ka4 {[%clk 0:00:03.3]} 108. Ke5 {[%clk 0:00:05]} 108... Ka3 {[%clk
0:00:03.8]} 109. Rb6 {[%clk 0:00:04.4]} 109... d4 {[%clk 0:00:03.8]} 110. Ke4
{[%clk 0:00:04.5]} 110... Ka4 {[%clk 0:00:03.9]} 111. Kd3 {[%clk 0:00:04]}
111... Rb4 {[%clk 0:00:04.1]} 112. Rxc6 {[%clk 0:00:04.5]} 112... Kb5 {[%clk
0:00:04]} 113. Rc8 {[%clk 0:00:04.7]} 113... Kb6 {[%clk 0:00:04.2]} 114. Rh8
{[%clk 0:00:03]} 114... Kc5 {[%clk 0:00:04.4]} 115. Rh5+ {[%clk 0:00:03.3]}
115... Kc6 {[%clk 0:00:05]} 116. Rg5 {[%clk 0:00:04.2]} 116... Kd6 {[%clk
0:00:05.2]} 117. Rh5 {[%clk 0:00:04.5]} 117... Kc6 {[%clk 0:00:05.8]} 118. Rg5
{[%clk 0:00:05]} 118... Kd6 {[%clk 0:00:06.4]} 119. Rh5 {[%clk 0:00:05.7]}
119... Kc6 {[%clk 0:00:07]} 1/2-1/2

[Event "Late-Titled-Tuesday-Blitz-May-14-2024"]
[Site "Chess.com"]
[Date "2024.05.14"]
[Round "5"]
[White "ClauAmura"]
[Black "Davidalhesa2007"]
[Result "1-0"]
[WhiteElo "2319"]
[BlackElo "1932"]
[TimeControl "180+1"]
[EndTime "14:50:17 PDT"]
[Termination "ClauAmura won by resignation"]

1. d4 {[%clk 0:03:00.9]} 1... d5 {[%clk 0:02:59.8]} 2. Bg5 {[%clk 0:02:58.4]}
2... h6 {[%clk 0:02:54.8]} 3. Bh4 {[%clk 0:02:57.7]} 3... g5 {[%clk 0:02:54.4]}
4. Bg3 {[%clk 0:02:56.9]} 4... Bg7 {[%clk 0:02:52.4]} 5. h4 {[%clk 0:02:54.8]}
5... g4 {[%clk 0:02:45.4]} 6. e3 {[%clk 0:02:55.2]} 6... h5 {[%clk 0:02:39]} 7.
c4 {[%clk 0:02:55]} 7... c6 {[%clk 0:02:37]} 8. Nc3 {[%clk 0:02:51.3]} 8... Bf5
{[%clk 0:02:29.6]} 9. cxd5 {[%clk 0:02:50.8]} 9... cxd5 {[%clk 0:02:30.5]} 10.
Qb3 {[%clk 0:02:48.5]} 10... b6 {[%clk 0:02:17.5]} 11. Qxd5 {[%clk 0:02:39.3]}
11... Qxd5 {[%clk 0:02:13.6]} 12. Nxd5 {[%clk 0:02:40.2]} 1-0

[Event "Late-Titled-Tuesday-Blitz-May-14-2024"]
[Site "Chess.com"]
[Date "2024.05.14"]
[Round "5"]
[White "Rodalquilar"]
[Black "RantomOpening"]
[Result "1-0"]
[WhiteElo "2860"]
[BlackElo "2587"]
[TimeControl "180+1"]
[EndTime "14:50:31 PDT"]
[Termination "Rodalquilar won by resignation"]

1. d4 {[%clk 0:03:00.9]} 1... c6 {[%clk 0:03:00.2]} 2. Nf3 {[%clk 0:03:00.7]}
2... Nf6 {[%clk 0:02:59.6]} 3. Bf4 {[%clk 0:03:00.4]} 3... Qb6 {[%clk
0:02:59.4]} 4. Nbd2 {[%clk 0:02:59.2]} 4... Qxb2 {[%clk 0:02:38.3]} 5. e4 {[%clk
0:02:59.2]} 5... d6 {[%clk 0:02:37.3]} 6. Nc4 {[%clk 0:02:59.5]} 6... Qb4+
{[%clk 0:02:30.7]} 7. c3 {[%clk 0:03:00]} 7... Qxc3+ {[%clk 0:02:19]} 8. Bd2
{[%clk 0:02:59.9]} 8... Nxe4 {[%clk 0:02:14.5]} 9. Bxc3 {[%clk 0:03:00.2]} 9...
Nxc3 {[%clk 0:02:15.4]} 10. Qc2 {[%clk 0:02:58.1]} 10... Nd5 {[%clk 0:02:13.2]}
11. Ne3 {[%clk 0:02:58.3]} 11... Nxe3 {[%clk 0:02:10.1]} 12. fxe3 {[%clk
0:02:58.8]} 12... g6 {[%clk 0:02:10]} 13. h4 {[%clk 0:02:58.5]} 13... h5 {[%clk
0:02:09.2]} 14. Bc4 {[%clk 0:02:56.9]} 14... Bg7 {[%clk 0:02:06.7]} 15. Ng5
{[%clk 0:02:57.2]} 15... d5 {[%clk 0:02:01.2]} 16. Bxd5 {[%clk 0:02:56.8]} 16...
O-O {[%clk 0:01:57]} 1-0